{"text_format":"1","workbook":"xlsx","n_sheets":1,"sheets":["Лист1"],"not_rendered":{"charts":0,"images":3,"macros":0,"external_links":0,"defined_names":1,"comments":1,"pivot_tables":0},"unopened":[],"bounds":{"document_bytes":16777216,"sheet_cells":100000,"rows_first":2000,"rows_last":500,"rows_between":2000,"halvings":0,"cell_chars":16384,"cell_head_chars":4096},"cells_cut":0,"cells_raw":0,"read":"whole","date_system":"1900"}

{"sheet":"Лист1","index":0,"n_rows":47,"n_cols":30,"rows_kept":47,"cut":false,"hidden":false,"merged":[[22,3,22,4],[26,2,26,3],[25,6,25,7],[10,1,10,2],[10,3,10,6],[15,2,15,6],[16,1,16,6],[17,1,17,2],[18,1,18,2],[12,1,12,2],[12,3,12,6],[13,3,13,6],[14,2,14,6],[20,1,21,2],[9,1,9,3],[9,5,9,6],[11,1,11,2],[11,3,11,6],[4,1,4,5],[6,1,6,2],[6,3,6,6],[7,1,7,2],[7,3,7,6],[5,1,5,2],[1,5,1,6],[2,5,2,6],[7,10,7,12],[8,8,8,9],[4,9,4,13],[6,10,6,13],[8,10,8,13],[1,7,1,11],[2,10,2,11],[1,12,3,22],[2,7,2,8],[3,8,3,11],[6,8,6,9],[3,5,3,6],[8,3,8,6],[15,12,15,13],[4,16,4,18],[9,16,9,17],[9,18,9,20],[13,8,13,9],[13,10,13,12],[9,8,9,9],[9,10,9,13],[10,8,10,9],[10,10,10,13],[11,8,11,13],[12,8,12,10],[12,11,12,13],[7,18,7,19],[8,16,8,20],[12,16,12,17],[21,11,21,12],[14,16,14,18],[14,19,14,21],[15,16,15,17],[15,18,15,21],[16,16,16,21],[17,16,17,21],[18,16,18,21],[19,16,19,21],[20,16,20,21],[16,8,16,13],[17,8,17,10],[18,8,18,10],[18,11,18,13],[14,8,14,9],[15,8,15,11],[12,18,12,21],[13,16,13,21],[4,19,4,21],[6,16,6,17],[6,18,6,20],[10,17,10,20],[11,16,11,21]]}
[]
[null,null,null,null,null,"Заказчик",null,"ООО Лига",null,null,null,null,null,null,null,null,null,null,null,null,null,null,null,null,null,"Помощь при расчете заказа"]
[null,null,null,null,null,"Заказ   №",null,null,null,"от",null,null,null,null,null,null,null,null,null,null,null,null,null,null,null,"№ п/п","Наименование позиции (с кодировкой)","Кол-во","Цена","Сумма"]
[null,null,null,null,null,"Дата отгрузки",null,null,null,null,null,null,null,null,null,null,null,null,null,null,null,null,null,null,null,1,"1007-62",1,4580,{"$f":"AB4*AC4","v":4580}]
[null,"Количество комплектов данной кухни",null,null,null,null,null,null,"Ручка","рейлинг хром",null,null,null,null,null,null,"Опора барной стойки",null,null,null,null,null,null,null,null,2,"1006-60",1,3410,{"$f":"AB5*AC5","v":3410}]
[null,"ТИП фасада",null,"МДФ металлик",null,"Тадж",null,null,null,null,null,null,null,null,null,null,null,null,null,null,null,null,null,null,null,3,"фасад под ПМ",1,1030,1030]
[null,"Цвет фасада",null,"белый мет ТМ401- верх,Морская волна ТМ-425 -низ",null,null,null,null,"Сверловка под ручку",null,"96 мм",null,null,null,null,null,"Багет 16\\",null,null,null,null,null,"шт",null,null,4,"стол трапеция с вогнут. Фасадом",1,8010,8010]
[null,"Фрезеровка",null,"мыло",null,null,null,null,null,null,"(Горизонтально/вертикально)",null,null,null,null,null,null,null,"( указать тип и цвет",null,null,null,null,null,null,5,"Стол под плиту",1,2030,2030]
[null,null,null,"(под стекло:рамка с крестом/без креста)",null,null,null,null,"Опоры простые\\хром ",null,"простые",null,null,null,null,null,null,null,null,null,null,null,"шт",null,null,6,"1001-10",1,1330,1330]
[null,"Текстура ПВХ( верт.\\ гориз.)",null,null,null,"стандарт",null,null,"Высота опор  100\\150",null,100,null,null,null,null,null,"Светильники (кол-во)",null,null,null,null,null,"компл",null,null,7,"1553-20",1,520,{"$f":"AB10*AC10","v":520}]
[null,"Цвет каркаса",null,"белый",null,null,null,null,"Цоколь ЛДСП\\ ПВХ ",null,"ЛДСП",null,null,null,null,null,"Планки",null,null,null,null,null,"шт",null,null,8,"шкаф тапеция с вог.фас",1,3420,{"$f":"AB11*AC11","v":3420}]
[null,"Цвет столешници",null,"905Г белые камни",null,null,null,null,null,null,null,null,null,null,null,null,null,null,null,null,null,null,null,null,null,9,"1421-60 сушка",1,2320,{"$f":"AB12*AC12","v":2320}]
[null,"Тип столешницы",null,"38 мм",null,null,null,null,"Петли с доводчиком (да\\нет)",null,null,"нет",null,null,null,null,"Профиля для ст. п. ",null,null,null,null,null,null,null,null,10,"1305-51",1,2483,{"$f":"AB13*AC13","v":2483}]
[null,null,null,"(26мм/38мм,простая/влагостойкая)",null,null,null,null,"Стен. Панель",null,"FM 32 -  1 шт",null,null,null,"шт",null,null,null,null,null,null,null,null,null,null,11,"1312-30",1,1330,{"$f":"AB14*AC14","v":1330}]
[null,"Стекло","нет",null,null,null,null,null,"( указать цвет)(Кол-во)",null,null,null,null,null,null,null,"Дополнительные полки ",null,null,null,null,null,null,null,null,12,"пенал на 300 мм",1,6510,6510]
[null,"Мойка","клиента",null,null,null,null,null,"Плинтус Простой\\ Rehau \\Алюм-й",null,null,null,"нет",null,"шт",null,"Примечание",null,null,null,null,null,null,null,null,13,"наценка на столешку 3 кат",1,4980,4980]
[null,"Вырез под мойку: слева\\по центру\\справа",null,null,null,null,null,null,null,null,null,null,null,null,null,null,null,null,null,null,null,null,null,null,null,14,"стеновая FM 32",1,3170,3170]
[null,"(нужное подчеркнуть)",null,null,null,null,null,null,"( указать тип и цвет вставки)",null,null,null,null,null,null,null,null,null,null,null,null,null,null,null,null,15,"наценка на ручки",15,40,600]
[null,"Сушилка: простая",null,"нет",null,"встроенная",null,null,null,null,null,null,null,null,null,null,null,null,null,null,null,null,null,null,null,16,null,null,null,0]
[null,null,null,"  (размер)",null,null,null,null,null,null,null,null,null,null,null,null,null,null,null,null,null,null,null,null,null,17,null,null,null,{"$f":"SUM(AD4:AD19)","v":45723}]
[null,"эскиз столешни",null,null,null,"(размер)","H= 920",null,null,null,null,null,null,null,null,null,null,null,null,null,null,null,null,null,null,18]
[null,null,null,null,null,null,"H= 460",null,null,null,null,null,null,null,null,null,null,null,null,null,null,null,null,null,null,19]
[null,null,null,null,null,null,null,null,null,null,null,null,null,null,null,null,null,null,null,null,null,null,null,null,null,20]
[null,null,null,null,null,null,null,null,null,null,null,null,null,null,null,null,null,null,null,null,null,null,null,null,null,21]
[null,null,null,null,null,null,null,null,null,null,null,null,null,null,null,null,null,null," ",null,null,null,null,null,null,22]
[null,null,null,null,null,null,null,null,null,null,null,null,null,null,null,null,null,null,null,null,null,null,null,null,null,23]
[null,null,null,null,null,null,null,null,null,null,null,null,null,null,null,null,null,null,null,null,null,null,null,null,null,24]
[null,null,null,null,null,null,null,null,null,null,null,null,null,null,null,null,null,null,null,null,null,null,null,null,null,25]
[null,null,null,null,null,null,null,null,null,null,null,null,null,null,null,null,null,null,null,null,null,null,null,null,null,26]
[null,null,null,null,null,null,null,null,null,null,null,null,null,null,null,null,null,null,null,null,null,null,null,null,null,27]
[null,null,null,null,null,null,null,null,null,null,null,null,null,null,null,null,null,null,null,null,null,null,null,null,null,28]
[null,null,null,null,null,null,null,null,null,null,null,null,null,null,null,null,null,null,null,null,null,null,null,null,null,29]
[null,null,null,null,null,null,null,null,null,null,null,null,null,null,null,null,null,null,null,null,null,null,null,null,null,30]
[null,null,null,null,null,null,null,null,null,null,null,null,null,null,null,null,null,null,null,null,null,null,null,null,null,31]
[null,null,null,null,null,null,null,null,null,null,null,null,null,null,null,null,null,null,null,null,null,null,null,null,null,32]
[null,null,null,null,null,null,null,null,null,null,null,null,null,null,null,null,null,null,null,null,null,null,null,null,null,33]
[null,null,null,null,null,null,null,null,null,null,null,null,null,null,null,null,null,null,null,null,null,null,null,null,null,34]
[null,null,null,null,null,null,null,null,null,null,null,null,null,null,null,null,null,null,null,null,null,null,null,null,null,35]
[null,null,null,null,null,null,null,null,null,null,null,null,null,null,null,null,null,null,null,null,null,null,null,null,null,36,null,null,null,0]
[null,null,null,null,null,null,null,null,null,null,null,null,null,null,null,null,null,null,null,null,null,null,null,null,null,37,null,null,null,0]
[null,null,null,null,null,null,null,null,null,null,null,null,null,null,null,null,null,null,null,null,null,null,null,null,null,38,null,null,null,0]
[null,null,null,null,null,null,null,null,null,null,null,null,null,null,null,null,null,null,null,null,null,null,null,null,null,39,null,null,null,0]
[null,null,"С условиями оформления и ",null,null,null,null,null,null,null,null,null,null,null,null,null,null,null,null,null,null,null,null,null,null,40,null,null,null,0]
[null,null,"размерами заказа согласен.",null,null,null,null,null,null,null,null,null,null,null,null,null,null,null,null,null,null,null,null,null,null,41,null,null,null,0]
[null,null,"Подпись",null,null,null,null,null,null,null,null,null,null,null,null,null,null,null,null,null,null,null,null,null,null,42,null,null,null,0]
[null,null,null,null,null,null,null,null,null,null,null,null,null,null,null,null,null,null,null,"Цена заказа:",45720,"руб.",null,null,null,43,null,null,null,0]
[null,null,null,null,null,null,null,null,null,null,null,null,null,null,null,null,null,null,null,null,null,null,null,null,null,null,"Цена заказа:",null,"Всего:",45720]